bitfinex/quotes_ETHUSD_20251010
["timestamp","ask_amount","ask_price","bid_price","bid_amount"]
[1760056150605,0.4554,4385.7,4385.2,2.28039182]
[1760056153637,0.1136,4385.8,4385.2,2.28039182]
[1760056153939,0.4554,4385.6,4385.1,2.39403984]
[1760056154238,0.4554,4385.5,4384.8,0.001]
[1760056154415,8.9236,4385.4,4384.9,2.28053833]
[1760056154837,0.4554,4385.3,4384.9,2.28053833]
[1760056155429,0.007,4385.9,4385.2,4.04315345]
[1760056155747,3.862,4385.8,4385.7,6.32325572]
[1760056155926,3.862,4385.8,4385.7,2.74130227]
[1760056160757,3.862,4385.8,4385.7,2.76410364]
[1760056161556,1.49,4385.8,4385.7,4.68410364]
[1760056161760,1.49,4385.8,4385.7,6.32746292]
[1760056161970,0.007,4385.9,4385.8,2.28008573]
[1760056162267,0.007,4385.9,4385.8,2.76408658]
[1760056163271,0.007,4385.9,4385.8,3.44889847]
[1760056165459,0.007,4385.9,4385.8,3.56249847]
[1760056165670,0.007,4385.9,4385.8,4.01521432]
[1760056167384,0.1186,4386.9,4386.8,4.04315345]
[1760056167385,1e-08,4386.9,4386.8,4.04315345]
[1760056167681,1e-08,4386.9,4386.8,2.27956597]
[1760056167905,1e-08,4386.9,4386.8,8.69801942]
[1760056168200,1e-08,4386.9,4386.8,9.3826594]
[1760056170155,1e-08,4386.9,4386.8,5.33950595]
[1760056170401,1e-08,4386.9,4386.8,9.83537525]
[1760056171265,1e-08,4386.9,4386.8,5.7922218]
[1760056172988,1e-08,4386.9,4386.8,4.88420595]
[1760056173291,1e-08,4386.9,4386.8,5.33950595]
[1760056177488,1e-08,4386.9,4386.8,5.45310595]
[1760056182818,0.00220461,4387.4,4387.3,2.27930617]
[1760056183403,0.00220461,4387.4,4387.3,2.73460617]
[1760056183832,0.00220461,4387.4,4387.3,2.27930617]
[1760056186523,0.00220461,4387.4,4387.3,2.70770617]
[1760056186924,2.371,4387.7,4387.6,2.27910899]
[1760056187142,2.371,4387.7,4387.6,2.70750899]
[1760056187302,0.1186,4387.9,4387.6,2.7075462]
[1760056187513,0.005,4387.9,4387.7,0.4284]
[1760056187706,0.005,4387.9,4387.8,2.27904644]
[1760056188130,8.807,4387.9,4387.8,2.70744644]
[1760056188822,8.807,4387.9,4387.8,0.4284]
[1760056189330,8.807,4387.9,4387.8,2.70744644]
[1760056189842,8.807,4387.9,4387.8,0.4284]
[1760056190038,8.807,4387.9,4387.7,2.27909202]
[1760056191255,8.807,4387.9,4387.5,2.27918963]
[1760056191423,8.807,4387.9,4387.7,2.70747768]
[1760056191765,8.807,4387.9,4387.4,0.1136]
[1760056191766,8.807,4387.9,4387.6,2.27914069]
[1760056192149,8.807,4387.9,4387.4,2.82124661]
[1760056192351,8.807,4387.9,4387.6,2.27910146]
[1760056192667,8.807,4387.9,4387.5,2.27919468]
[1760056192845,8.807,4387.9,4387.3,0.4284]
[1760056192846,0.4327,4387.8,4387.3,2.27930113]
[1760056193224,0.4327,4387.7,4387.2,2.0336]
[1760056193467,0.4505,4387.6,4387.2,0.1136]
[1760056193636,0.4505,4387.6,4386.8,0.001]
[1760056193637,0.4474,4387.5,4386.8,0.001]
[1760056193837,0.4474,4387.5,4386.9,0.1136]
[1760056194041,0.4474,4387.5,4386.9,2.393114]
[1760056194336,0.4474,4387.5,4386.9,2.39310902]
[1760056194646,0.4474,4387.5,4386.9,0.1136]
[1760056194952,0.4474,4387.5,4386.9,2.39308841]
[1760056195876,3.3443916,4387.6,4386.9,2.39308841]
[1760056196091,8.801,4387.4,4386.9,4.31308841]
[1760056196234,9.2484,4387.4,4386.9,2.0336]
[1760056196728,0.4474,4387.3,4386.9,0.1136]
[1760056196928,8.801,4387.4,4386.9,0.1136]
[1760056197141,0.4431,4387.2,4386.9,0.1136]
[1760056198272,8.801,4387.4,4386.9,0.1136]
[1760056198474,8.801,4387.4,4386.8,0.001]
[1760056198475,0.4431,4387.1,4386.8,0.001]
[1760056198633,0.4431,4387.1,4386.8,2.28056218]
[1760056198833,0.4431,4387.0,4386.8,2.28056218]
[1760056199049,6.431,4386.9,4386.8,2.28056218]
[1760056200363,6.8741,4386.9,4386.8,0.001]
[1760056200528,7.52856,4386.9,4386.8,0.001]
[1760056200931,7.19906,4386.9,4386.8,0.001]
[1760056201160,7.64216,4386.9,4386.8,0.001]
[1760056201737,9.921674,4386.9,4386.8,0.001]
[1760056202570,7.64216,4386.9,4386.8,0.001]
[1760056207554,0.1136,4386.9,4386.8,2.28056597]
[1760056207746,0.1136,4387.1,4387.0,2.27946204]
[1760056207945,2.622,4387.1,4387.0,5.97576439]
[1760056209449,2.622,4387.1,4387.0,6.08936439]
[1760056210967,0.5538,4387.8,4387.3,2.27926145]
[1760056211175,8.802,4387.7,4387.3,2.27926145]
[1760056211581,0.4402,4387.6,4387.1,2.27938705]
[1760056211881,0.4402,4387.6,4387.2,2.27933435]
[1760056212078,0.4402,4387.6,4386.8,0.001]
[1760056212079,0.007,4387.9,4387.5,3.24330235]
[1760056212381,6.431,4387.5,4387.4,0.1136]
[1760056212575,6.431,4387.5,4387.4,2.39285422]
[1760056214379,6.431,4387.5,4387.4,0.1136]
[1760056214583,6.8683,4387.5,4386.9,2.279514]
[1760056214753,2.71656909,4387.4,4386.8,0.1146]
[1760056215858,2.71656909,4387.4,4386.8,0.001]
[1760056215859,0.4373,4387.4,4386.8,0.001]
[1760056216061,2.39302163,4387.1,4386.8,0.001]
[1760056216270,8.802,4387.0,4386.8,0.001]
[1760056216447,9.2393,4387.0,4386.8,0.001]
[1760056216652,8.802,4387.0,4386.8,0.001]
[1760056216885,0.4373,4386.9,4386.8,0.001]
[1760056218371,4.51364649,4386.9,4386.8,0.001]
[1760056218570,7.75694884,4386.9,4386.8,0.001]
[1760056220249,4.51364649,4386.9,4386.8,0.001]
[1760056230162,4.51564649,4386.9,4386.8,0.001]
[1760056232199,6.92619164,4386.9,4386.8,0.001]
[1760056235601,1.92,4386.8,4385.3,0.001]
[1760056235808,6.37959605,4385.4,4385.3,0.001]
[1760056235984,24.67259605,4385.4,4385.3,0.001]
[1760056236177,25.10779605,4385.4,4385.3,0.001]
[1760056243583,27.02779605,4385.4,4385.3,0.001]
[1760056243795,29.2795665,4385.4,4385.3,0.001]
[1760056249954,5.82326415,4385.4,4385.3,0.001]
[1760056250103,8.806,4385.4,4385.3,0.001]
[1760056250302,9.2391,4385.4,4385.3,0.001]
[1760056250503,11.5193937,4385.4,4385.3,0.001]
[1760056251008,9.2391,4385.4,4385.3,0.001]
[1760056251212,12.1529937,4385.4,4385.3,0.001]
[1760056251417,9.8727,4385.4,4385.3,0.001]
[1760056252001,9.4396,4385.4,4385.3,0.001]
[1760056252401,11.7198937,4385.4,4385.3,0.001]
[1760056253336,12.1529937,4385.4,4385.3,0.001]
[1760056254956,17.16394482,4385.4,4385.3,0.001]
[1760056257427,13.92064247,4385.4,4385.3,0.001]
[1760056261351,14.412193,4385.4,4385.3,0.001]
[1760056264134,5.606193,4385.4,4385.3,0.001]
[1760056264332,26.18406123,4385.4,4385.3,0.001]
[1760056266329,23.81106123,4385.4,4385.3,0.001]
[1760056266522,26.18406123,4385.4,4385.3,0.001]
[1760056268150,3.83854423,4385.4,4385.3,0.001]
[1760056268457,21.6459937,4385.4,4385.3,0.001]
[1760056268654,21.38736143,4385.4,4385.3,0.001]
[1760056269157,22.02096143,4385.4,4385.3,0.001]
[1760056272955,0.2245,4385.8,4385.3,0.001]
[1760056273156,0.1136,4385.4,4385.3,0.001]
[1760056273356,1.3466,4385.4,4385.3,0.001]
[1760056274261,0.1136,4385.4,4385.3,0.001]
[1760056274430,8.9206,4385.4,4385.3,0.001]
[1760056275542,9.3593,4385.4,4385.3,0.001]
[1760056279633,13.43714288,4385.4,4385.3,0.001]
[1760056281762,15.35714288,4385.4,4385.3,0.001]
[1760056282072,15.84883843,4385.4,4385.3,0.001]
[1760056285570,16.46258061,4385.4,4385.3,0.001]
[1760056286159,15.84883843,4385.4,4385.3,0.001]
[1760056287082,15.84883843,4385.4,4385.1,1e-08]
[1760056287083,0.6336,4385.3,4385.1,1e-08]
[1760056287276,11.2679977,4385.2,4385.1,1e-08]
[1760056287477,12.19839325,4385.2,4385.1,1e-08]
[1760056296166,12.12399325,4385.2,4385.1,1e-08]
[1760056307930,4.83436177,4384.5,4383.3,0.001]
[1760056308080,27.67257432,4384.5,4383.3,0.001]
[1760056308279,28.11127432,4384.5,4383.3,0.001]
[1760056308479,28.72583898,4384.5,4383.3,0.001]
[1760056309087,28.11127432,4384.5,4383.3,0.001]
[1760056309390,2.91467392,4383.9,4383.3,0.001]
[1760056309589,16.01858647,4383.9,4383.3,0.001]
[1760056309903,16.45498647,4383.9,4383.3,0.001]
[1760056319537,15.65899227,4383.9,4383.3,0.001]
[1760056324455,18.90951507,4383.9,4383.3,0.001]
[1760056324619,20.68829848,4383.9,4383.3,0.001]
[1760056325659,27.78829848,4383.9,4383.3,0.001]
[1760056326237,45.28994145,4383.9,4383.3,0.001]
[1760056326829,45.90477568,4383.9,4383.3,0.001]
[1760056327034,32.54341865,4383.9,4383.3,0.001]
[1760056327341,35.79394145,4383.9,4383.3,0.001]
[1760056329147,35.79494145,4383.9,4383.3,0.001]
[1760056330412,26.98494145,4383.9,4383.3,0.001]
[1760056330647,35.79494145,4383.9,4383.3,0.001]
[1760056330965,32.54441865,4383.9,4383.3,0.001]
[1760056331819,16.46517392,4383.9,4383.3,0.001]
[1760056332019,4.65507392,4383.9,4383.3,0.001]
[1760056332243,8.81,4383.9,4383.3,0.001]
[1760056332719,9.4436,4383.9,4383.3,0.001]
[1760056332920,8.81,4383.9,4383.3,0.001]
[1760056333243,11.72467392,4383.9,4383.3,0.001]
[1760056333441,12.15887392,4383.9,4383.3,0.001]
[1760056337072,9.8778,4383.9,4383.3,0.001]
[1760056337433,12.15887392,4383.9,4383.3,0.001]
[1760056342770,21.38216104,4383.9,4383.3,0.001]
[1760056342955,2.91493412,4383.4,4383.3,0.001]
[1760056343135,14.52045692,4383.4,4383.3,0.001]
[1760056343468,2.91503821,4383.2,4383.1,0.006]
[1760056343787,13.54547567,4383.2,4383.1,1e-08]
[1760056343962,13.97767567,4383.2,4383.1,1e-08]
[1760056345496,14.68293441,4383.2,4383.1,1e-08]
[1760056346556,14.06910413,4383.2,4383.1,1e-08]
[1760056347361,14.68247905,4383.2,4383.1,1e-08]
[1760056347984,14.06910413,4383.2,4383.1,1e-08]
[1760056348193,7.63410413,4383.2,4383.1,1e-08]
[1760056348361,33.06110413,4383.2,4383.1,1e-08]
[1760056348562,36.22119847,4383.2,4383.1,1e-08]
[1760056348863,6.90907567,4383.2,4383.1,1e-08]
[1760056349170,26.82376101,4383.2,4383.1,1e-08]
[1760056350065,27.31420658,4383.2,4383.1,1e-08]
[1760056351114,27.31420658,4383.2,4383.1,0.00100001]
[1760056351610,26.82376101,4383.2,4383.1,0.00100001]
[1760056351768,27.3141501,4383.2,4383.1,0.00100001]
[1760056351991,29.56592055,4383.2,4383.1,0.00100001]
[1760056352369,29.07553146,4383.2,4383.1,0.00100001]
[1760056353313,29.07653146,4383.2,4383.1,0.00100001]
[1760056354711,2.28143821,4383.2,4383.1,0.00100001]
[1760056354915,21.02063821,4383.2,4383.1,0.00100001]
[1760056355213,2.28134753,4383.4,4383.1,0.00100001]
[1760056355511,2.71338523,4383.7,4383.1,0.00100001]
[1760056355512,8.81,4383.3,4383.1,0.00100001]
[1760056355677,9.2422,4383.3,4383.1,0.00100001]
[1760056355879,11.091396,4383.3,4383.1,0.00100001]
[1760056356389,11.523596,4383.3,4383.1,0.00100001]
[1760056356565,2.71363821,4383.2,4383.1,0.00100001]
[1760056356766,3.34723821,4383.2,4383.1,0.00100001]
[1760056357402,7.92659223,4383.2,4383.1,0.00100001]
[1760056366812,9.84659223,4383.2,4383.1,0.00100001]
[1760056367301,10.33737096,4383.2,4383.1,0.00100001]
[1760056368005,9.84659223,4383.2,4383.1,0.00100001]
[1760056368200,10.33750156,4383.2,4383.1,0.00100001]
[1760056372938,7.08697876,4383.2,4383.1,0.00100001]
[1760056373124,38.75618037,4383.2,4383.1,0.00100001]
[1760056379801,7.06805757,4383.2,4383.1,0.00100001]
[1760056379998,28.01290156,4383.2,4383.1,0.00100001]
[1760056380200,28.64650156,4383.2,4383.1,0.00100001]
[1760056380600,7.08697876,4383.2,4383.1,0.00100001]
[1760056380801,17.63014754,4383.2,4383.1,0.00100001]
[1760056381001,24.06714754,4383.2,4383.1,0.00100001]
[1760056382433,21.51354754,4383.2,4383.1,0.00100001]
[1760056382629,22.94263821,4383.2,4383.1,0.00100001]
[1760056382834,23.57623821,4383.2,4383.1,0.00100001]
[1760056384838,0.002,4383.3,4383.1,0.00100001]
[1760056385139,2.409,4383.2,4383.1,0.00100001]
[1760056385305,2.409,4383.2,4383.1,0.22935979]
[1760056385640,2.409,4383.2,4383.1,0.66865979]
[1760056386440,0.002,4383.3,4383.2,2.28143821]
[1760056386600,0.002,4383.3,4383.2,2.74355259]
[1760056386601,6.438,4383.3,4383.2,2.74355259]
[1760056386808,6.438,4383.3,4383.2,3.20544044]
[1760056387501,6.438,4383.3,4383.1,0.11460001]
[1760056387951,6.438,4383.3,4383.2,2.72073821]
[1760056388113,6.438,4383.3,4383.2,0.4393]
[1760056389141,6.438,4383.3,4383.1,0.11460001]
[1760056389642,6.438,4383.3,4383.2,0.4393]
[1760056390810,6.438,4383.3,4383.1,0.11460001]
[1760056392354,6.438,4383.3,4383.1,0.55390001]
[1760056393521,6.438,4383.3,4383.2,0.4393]
[1760056393909,0.002,4383.3,4383.1,0.11460001]
[1760056394113,0.002,4383.3,4383.2,2.74355259]
[1760056394354,0.112,4383.3,4383.2,0.4393]
[1760056394526,0.112,4383.3,4383.2,0.7229388]
[1760056395034,0.112,4383.3,4383.2,3.00437701]
[1760056395649,2.179,4383.3,4383.2,3.02719139]
[1760056395949,0.002,4383.3,4383.2,3.02719139]
[1760056396109,3.859,4383.3,4383.2,3.02719139]
[1760056397359,3.859,4383.3,4383.2,3.00437701]
[1760056399232,3.859,4383.3,4383.2,2.72073821]
[1760056400950,3.859,4383.3,4383.1,0.00100001]
[1760056403553,4.2969,4383.3,4383.1,0.00100001]
[1760056403922,6.57828844,4383.3,4383.1,0.00100001]
[1760056404249,2.28143821,4383.2,4383.1,0.00100001]
[1760056404455,13.50477203,4383.2,4383.1,0.00100001]
[1760056406970,0.65783382,4383.2,4383.1,0.00100001]
[1760056407135,0.894,4383.2,4383.1,0.46790001]
[1760056407334,0.002,4383.3,4383.1,0.46790001]
[1760056407533,3.116,4383.2,4383.1,0.02381491]
[1760056407734,3.116,4383.2,4383.1,0.25444983]
[1760056408175,3.116,4383.2,4383.1,0.72134983]
[1760056408581,3.116,4383.2,4383.1,3.00284009]
[1760056408973,0.002,4383.3,4383.1,3.00284009]
[1760056409150,7.522,4383.2,4383.1,2.53594009]
[1760056409702,7.522,4383.2,4383.1,3.00284009]
[1760056410366,7.522,4383.2,4383.1,0.49071491]
[1760056410666,7.522,4383.2,4383.1,0.46790001]
[1760056411502,7.522,4383.2,4383.1,2.74939027]
[1760056412160,0.002,4383.3,4383.2,2.28143821]
[1760056412498,0.002,4383.3,4383.2,2.77115259]
[1760056412796,0.125,4383.3,4383.2,2.77115259]
[1760056413656,2.097,4383.3,4383.2,2.74833821]
[1760056422085,2.097,4383.3,4383.2,2.28143821]
[1760056422670,2.097,4383.3,4383.2,2.86193821]
[1760056424388,2.097,4383.3,4383.2,2.88475259]
[1760056426686,2.097,4383.3,4383.2,0.5722]
[1760056427291,2.097,4383.3,4383.1,2.28244596]
[1760056427292,2.097,4383.3,4383.1,0.00100001]
[1760056429114,2.5349,4383.3,4383.1,0.00100001]
[1760056429894,2.097,4383.3,4383.1,0.00100001]
[1760056432120,0.002,4383.3,4383.1,0.00100001]
[1760056432304,8.807,4383.2,4383.1,0.00100001]
[1760056433014,8.807,4383.2,4383.1,0.45960001]
[1760056434432,8.807,4383.2,4383.1,2.74109027]
[1760056434607,2.375,4383.3,4383.2,2.28143821]
[1760056434822,0.002,4383.3,4383.2,2.76285259]
[1760056435025,0.002,4383.3,4383.2,4.68285259]
[1760056435232,0.002,4383.3,4383.2,5.06243527]
[1760056436014,0.002,4383.3,4383.2,5.15379086]
[1760056441543,0.002,4383.3,4383.2,8.400906]
[1760056442230,0.002,4383.3,4383.2,11.64802114]
[1760056443453,0.002,4383.3,4383.2,12.11081452]
[1760056443763,0.002,4383.3,4383.2,8.86369938]
[1760056444131,0.002,4383.3,4383.2,5.15379086]
[1760056444453,0.002,4383.3,4383.2,4.66003821]
[1760056444872,0.002,4383.3,4383.2,4.77363821]
[1760056452176,0.002,4383.3,4383.2,2.4922]
[1760056452342,0.002,4383.3,4383.2,4.77363821]
[1760056453293,0.002,4383.3,4383.1,0.00100001]
[1760056453444,0.199,4383.3,4383.1,0.00100001]
[1760056455356,0.1136,4383.2,4383.1,0.00100001]
[1760056458490,8.9196,4383.2,4383.1,0.00100001]
[1760056459796,0.1136,4383.2,4383.1,0.00100001]
[1760056460004,8.9196,4383.2,4383.1,0.00100001]
[1760056460201,9.81176,4383.2,4383.1,0.00100001]
[1760056462003,1.00576,4383.2,4383.1,0.00100001]
[1760056462203,8.9196,4383.2,4383.1,0.00100001]
[1760056466031,0.1136,4383.2,4383.1,0.00100001]
[1760056466328,8.9196,4383.2,4383.1,0.00100001]
[1760056466527,9.3599,4383.2,4383.1,0.00100001]
[1760056466913,12.27493821,4383.2,4383.1,0.00100001]
[1760056467117,13.50263203,4383.2,4383.1,0.00100001]
[1760056468122,11.22119382,4383.2,4383.1,0.00100001]
[1760056468323,10.78089382,4383.2,4383.1,0.00100001]
[1760056468996,0.002,4383.3,4383.1,0.00100001]
[1760056469219,2.954,4383.2,4383.1,3.24811515]
[1760056469522,2.954,4383.2,4383.1,3.27093005]
[1760056469725,2.954,4383.2,4383.1,3.71513005]
[1760056470427,2.954,4383.2,4383.1,0.00100001]
[1760056473510,3.26096,4383.2,4383.1,0.00100001]
[1760056474241,2.954,4383.2,4383.1,0.00100001]
[1760056481738,2.956,4383.2,4383.1,0.00100001]
[1760056486354,3.3786,4383.2,4383.1,0.00100001]
[1760056487836,2.956,4383.2,4383.1,0.00100001]
[1760056489738,3.3786,4383.2,4383.1,0.00100001]
[1760056490038,3.72802,4383.2,4383.1,0.00100001]
[1760056490234,6.00945821,4383.2,4383.1,0.00100001]
[1760056491170,6.64305821,4383.2,4383.1,0.00100001]
[1760056494352,0.35142,4383.2,4383.1,0.00100001]
[1760056494533,6.02403821,4383.2,4383.1,0.00100001]
[1760056496479,6.65763821,4383.2,4383.1,0.00100001]
[1760056500484,6.23503821,4383.2,4383.1,0.00100001]
[1760056500654,6.65763821,4383.2,4383.1,0.00100001]
[1760056502174,4.3762,4383.2,4383.1,0.00100001]
[1760056502376,8.04495821,4383.2,4383.1,0.00100001]
[1760056503193,5.34092,4383.2,4383.1,0.00100001]
[1760056503356,3.32,4383.2,4383.1,0.00100001]
[1760056505471,6.02403821,4383.2,4383.1,0.00100001]
[1760056505782,3.7426,4383.2,4383.1,0.00100001]
[1760056507289,8.81,4383.2,4383.1,0.00100001]
[1760056507588,8.9236,4383.2,4383.1,0.00100001]
[1760056508998,11.62763821,4383.2,4383.1,0.00100001]
[1760056509360,12.79060203,4383.2,4383.1,0.00100001]
[1760056509801,13.42420203,4383.2,4383.1,0.00100001]
[1760056510512,9.97296382,4383.2,4383.1,0.00100001]
[1760056510713,11.09143821,4383.2,4383.1,0.00100001]
[1760056510876,8.81,4383.2,4383.1,0.00100001]
[1760056511082,11.09143821,4383.2,4383.1,0.00100001]
[1760056511619,8.81,4383.2,4383.1,0.00100001]
[1760056513025,11.09143821,4383.2,4383.1,0.00100001]
[1760056513203,11.51403821,4383.2,4383.1,0.00100001]
[1760056513407,12.89377773,4383.2,4383.1,0.00100001]
[1760056513648,10.61233952,4383.2,4383.1,0.00100001]
[1760056513805,11.51403821,4383.2,4383.1,0.00100001]
[1760056515101,9.2326,4383.2,4383.1,0.00100001]
[1760056515904,11.51403821,4383.2,4383.1,0.00100001]
[1760056517026,12.14763821,4383.2,4383.1,0.00100001]
[1760056519032,12.64010356,4383.2,4383.1,0.00100001]
[1760056519224,14.53730922,4383.2,4383.1,0.00100001]
[1760056524235,16.45730922,4383.2,4383.1,0.00100001]
[1760056524810,17.07212964,4383.2,4383.1,0.00100001]
[1760056525207,16.45730922,4383.2,4383.1,0.00100001]
[1760056525740,17.1635487,4383.2,4383.1,0.00100001]
[1760056527309,16.54872828,4383.2,4383.1,0.00100001]
[1760056536524,26.04572828,4383.2,4383.1,0.00100001]
[1760056544640,26.6605487,4383.2,4383.1,0.00100001]
[1760056548292,26.04572828,4383.2,4383.1,0.00100001]
[1760056550858,35.54372828,4383.2,4383.1,0.00100001]
[1760056553162,36.36314782,4383.2,4383.1,0.00100001]
[1760056563686,39.61429469,4383.2,4383.1,0.00100001]
[1760056564282,33.18029469,4383.2,4383.1,0.00100001]
[1760056564482,17.18424909,4383.2,4383.1,0.00100001]
[1760056564717,23.00290356,4383.2,4383.1,0.00100001]
[1760056564914,0.49446535,4383.2,4383.1,0.00100001]
[1760056565216,8.811,4383.2,4383.1,0.00100001]
[1760056565588,11.09243821,4383.2,4383.1,0.00100001]
[1760056565798,11.51503821,4383.2,4383.1,0.00100001]
[1760056566316,14.89289571,4383.2,4383.1,0.00100001]
[1760056566813,16.81289571,4383.2,4383.1,0.00100001]
[1760056573743,5.75212526,4383.2,4383.1,0.00100001]
[1760056573893,24.05812526,4383.2,4383.1,0.00100001]
[1760056574414,22.13812526,4383.2,4383.1,0.00100001]
[1760056574918,10.26612526,4383.2,4383.1,0.00100001]
[1760056575097,21.64563821,4383.2,4383.1,0.00100001]
[1760056575419,3.33963821,4383.2,4383.1,0.00100001]
[1760056575719,21.64563821,4383.2,4383.1,0.00100001]
[1760056580995,2.91703821,4383.2,4383.1,0.00100001]
[1760056581194,21.22203821,4383.2,4383.1,0.00100001]
[1760056581422,0.002,4383.2,4383.1,0.00100001]
[1760056581631,0.002,4383.2,4383.1,0.3263147]
[1760056581632,8.81,4383.2,4383.1,0.3263147]
[1760056581833,8.81,4383.2,4383.1,0.00100001]
[1760056584697,8.81,4383.2,4383.1,0.44490001]
[1760056585136,8.81,4383.2,4383.1,0.00100001]
[1760056585638,9.2326,4383.2,4383.1,0.00100001]
[1760056586540,8.81,4383.2,4383.1,0.00100001]
[1760056591769,8.81,4383.2,4383.1,0.44730001]
[1760056592564,8.81,4383.2,4383.1,0.00100001]
[1760056602034,12.14763821,4383.2,4383.1,0.00100001]
[1760056602590,15.39878508,4383.2,4383.1,0.00100001]
[1760056611468,0.6356,4383.2,4383.1,0.00100001]
[1760056611653,21.64263821,4383.2,4383.1,0.00100001]
[1760056612978,23.81846203,4383.2,4383.1,0.00100001]
[1760056617696,25.73846203,4383.2,4383.1,0.00100001]
[1760056617899,26.23038917,4383.2,4383.1,0.00100001]
[1760056619958,26.8467347,4383.2,4383.1,0.00100001]
[1760056620188,26.23038917,4383.2,4383.1,0.00100001]
[1760056621158,26.84506979,4383.2,4383.1,0.00100001]
[1760056622295,7.92738917,4383.2,4383.1,0.00100001]
[1760056622594,27.30671222,4383.2,4383.1,0.00100001]
[1760056623693,9.00271222,4383.2,4383.1,0.00100001]
[1760056623894,24.05556535,4383.2,4383.1,0.00100001]
[1760056624466,27.30671222,4383.2,4383.1,0.00100001]
[1760056625483,24.05556535,4383.2,4383.1,0.00100001]
[1760056625992,26.3073358,4383.2,4383.1,0.00100001]
[1760056628804,24.3873358,4383.2,4383.1,0.00100001]
[1760056631012,26.92201642,4383.2,4383.1,0.00100001]
[1760056631172,26.3073358,4383.2,4383.1,0.00100001]
[1760056632405,26.92215367,4383.2,4383.1,0.00100001]
[1760056634406,26.3093358,4383.2,4383.1,0.00100001]
[1760056636777,8.0033358,4383.2,4383.1,0.00100001]
[1760056636981,5.11796535,4383.2,4383.1,0.00100001]
[1760056637205,23.42396535,4383.2,4383.1,0.00100001]
[1760056637411,24.05756535,4383.2,4383.1,0.00100001]
[1760056637577,23.56563821,4383.2,4383.1,0.00100001]
[1760056637780,24.05748449,4383.2,4383.1,0.00100001]
[1760056638010,23.56563821,4383.2,4383.1,0.00100001]
[1760056638727,24.05750322,4383.2,4383.1,0.00100001]
[1760056643282,26.30927367,4383.2,4383.1,0.00100001]
[1760056645718,24.05750322,4383.2,4383.1,0.00100001]
[1760056650088,5.75150322,4383.2,4383.1,0.00100001]
[1760056650296,24.05550322,4383.2,4383.1,0.00100001]
[1760056652336,21.71290322,4383.2,4383.1,0.00100001]
[1760056652538,21.22103821,4383.2,4383.1,0.00100001]
[1760056653234,11.72403821,4383.2,4383.1,0.00100001]
[1760056655330,2.28343821,4383.2,4383.1,0.00100001]
[1760056655642,11.09043821,4383.2,4383.1,0.00100001]
[1760056656533,12.14663821,4383.2,4383.1,0.00100001]
[1760056658226,14.39840866,4383.2,4383.1,0.00100001]
[1760056659223,14.89041734,4383.2,4383.1,0.00100001]
[1760056659718,14.39840866,4383.2,4383.1,0.00100001]
[1760056660439,14.89046522,4383.2,4383.1,0.00100001]
[1760056660648,14.39840866,4383.2,4383.1,0.00100001]
[1760056661138,14.89046097,4383.2,4383.1,0.00100001]
[1760056667015,16.81046097,4383.2,4383.1,0.00100001]
[1760056667749,16.81046097,4383.2,4382.6,1e-08]
[1760056667750,2.5536,4383.1,4382.6,1e-08]
[1760056667930,6.96652636,4382.7,4382.6,1e-08]
[1760056668243,14.91859403,4382.7,4382.6,1e-08]
[1760056668549,14.72571526,4382.7,4382.6,1e-08]
[1760056669344,15.34092678,4382.7,4382.6,1e-08]
[1760056669546,17.19426601,4382.7,4382.6,1e-08]
[1760056670341,18.49905449,4382.7,4382.6,1e-08]
[1760056670519,2.28190676,4382.3,4381.1,0.005]
[1760056670721,4.99401506,4381.9,4381.1,0.005]
[1760056670934,13.41922211,4381.9,4381.1,0.005]
[1760056671141,13.83922211,4381.9,4381.1,0.005]
[1760056672450,13.3471698,4381.9,4381.1,0.005]
[1760056682284,6.4941698,4381.9,4381.1,0.005]
[1760056682436,23.56271506,4381.9,4381.1,0.005]
[1760056684500,4.83571506,4381.9,4381.3,0.4445]
[1760056684655,13.38071506,4381.9,4381.3,0.4445]
[1760056686300,0.6336,4381.9,4381.3,0.4445]
[1760056686462,0.1136,4381.9,4381.5,3.25158349]
[1760056686660,2.374,4381.9,4381.8,4.02134184]
[1760056686857,8.808,4381.9,4381.8,4.02134184]
[1760056687065,0.002,4382.1,4381.8,4.02134184]
[1760056687263,2.846,4382.0,4381.9,0.46632115]
[1760056687818,2.374,4382.0,4381.9,0.46632115]
[1760056687987,0.002,4382.1,4382.0,2.28206298]
[1760056688188,8.81,4382.1,4382.0,2.28206298]
[1760056688388,8.81,4382.1,4382.0,2.72556298]
[1760056689295,8.81,4382.1,4382.0,0.4435]
[1760056689866,8.81,4382.1,4382.0,0.3699]
[1760056690067,8.81,4382.1,4382.0,0.69515835]
[1760056691683,8.81,4382.1,4381.8,0.1146]
[1760056691870,8.81,4382.1,4381.8,0.5581]
[1760056694223,8.81,4382.1,4381.8,0.1146]
[1760056694371,8.81,4382.1,4381.8,0.001]
[1760056696185,2.28211082,4382.0,4381.8,0.001]
[1760056696507,6.433,4381.9,4381.8,0.001]
[1760056696920,9.15171506,4381.9,4381.8,0.001]
[1760056697079,9.26531506,4381.9,4381.8,0.001]
[1760056697716,10.42772246,4381.9,4381.8,0.001]
[1760056698469,9.89891506,4381.9,4381.8,0.001]
[1760056699874,7.6168,4381.9,4381.8,0.001]
[1760056700072,7.1802,4381.9,4381.8,0.001]
[1760056700274,0.1136,4381.9,4381.8,0.001]
[1760056700474,8.3096,4381.9,4381.8,0.001]
[1760056702604,0.1156,4382.1,4381.8,0.4445]
[1760056702794,8.807,4381.9,4381.8,0.001]
[1760056704227,8.807,4381.9,4381.8,0.4445]
[1760056711709,2.374,4381.9,4381.8,0.4412]
[1760056711910,0.1156,4382.1,4381.8,0.71388219]
[1760056711911,0.002,4382.1,4381.8,0.71388219]
[1760056712111,0.002,4382.1,4382.0,5.64724647]
[1760056712411,2.303,4382.1,4382.0,5.64724647]
[1760056712592,2.303,4382.1,4382.0,6.08744647]
[1760056712790,2.303,4382.1,4382.0,7.19041521]